bitfinex/quotes_BTCUSD_20220304
["timestamp","ask_amount","ask_price","bid_price","bid_amount"]
[1646432187175,0.004,39210.0,39191.0,0.01651765]
[1646432187375,0.004,39210.0,39190.0,0.33791766]
[1646432187573,0.01605571,39209.0,39196.0,0.24390001]
[1646432187774,0.004,39210.0,39196.0,0.29390001]
[1646432187974,0.00260889,39210.0,39196.0,0.29390001]
[1646432188172,0.00260889,39210.0,39196.0,0.3658717]
[1646432188576,0.11014022,39211.0,39196.0,0.29390001]
[1646432188773,0.15454423,39209.0,39196.0,0.05]
[1646432188973,0.15454423,39209.0,39195.0,0.00030472]
[1646432189173,0.3,39208.0,39195.0,0.00030472]
[1646432189372,0.35,39208.0,39195.0,0.00030472]
[1646432189573,0.45,39208.0,39195.0,0.00030472]
[1646432189772,0.45,39208.0,39200.0,0.05973386]
[1646432189773,0.15,39208.0,39200.0,0.05973386]
[1646432189972,0.15,39208.0,39196.0,0.29526362]
[1646432190173,0.15,39208.0,39196.0,0.35990545]
[1646432190613,0.05,39208.0,39191.0,0.35490981]
[1646432190811,0.3,39207.0,39193.0,0.27730722]
[1646432191214,0.45,39207.0,39193.0,0.27730722]
[1646432191413,0.02535,39205.0,39193.0,0.27730722]
[1646432191813,0.02535,39205.0,39194.0,0.13555346]
[1646432191814,0.12535,39205.0,39194.0,0.13555346]
[1646432192012,0.12535,39205.0,39191.0,0.01304137]
[1646432192013,1.09875,39204.0,39191.0,0.01304137]
[1646432192213,0.02535,39202.0,39191.0,0.01304137]
[1646432192413,0.02535,39201.0,39191.0,0.01304137]
[1646432192812,0.32535,39201.0,39191.0,0.01304137]
[1646432193015,0.32535,39201.0,39186.0,0.01533146]
[1646432193016,0.02535,39201.0,39186.0,0.01533146]
[1646432193213,0.02535,39201.0,39190.0,0.15359262]
[1646432193214,0.07535,39201.0,39190.0,0.15359262]
[1646432193414,0.07535,39201.0,39186.0,0.01533146]
[1646432193614,0.07387728,39201.0,39186.0,0.06533146]
[1646432193818,0.02535,39199.0,39186.0,0.06533146]
[1646432194270,0.16154656,39198.0,39186.0,0.01533146]
[1646432194467,0.16154656,39198.0,39180.0,0.063862]
[1646432194468,0.02535,39197.0,39180.0,0.063862]
[1646432195068,0.02535,39197.0,39184.0,7.629e-05]
[1646432195269,0.02535,39201.0,39200.0,0.47265]
[1646432195467,0.83765959,39190.0,39184.0,7.629e-05]
[1646432195667,0.01533049,39189.0,39184.0,7.629e-05]
[1646432195867,0.01533049,39189.0,39179.0,0.61757284]
[1646432196279,0.01533049,39189.0,39179.0,0.01484914]
[1646432196470,0.01533049,39189.0,39179.0,0.28650009]
[1646432196867,0.01533049,39189.0,39180.0,0.063862]
[1646432197269,0.01533049,39189.0,39180.0,0.113862]
[1646432197670,0.01533049,39189.0,39179.0,0.27165095]
[1646432197671,0.04068049,39189.0,39179.0,0.27165095]
[1646432197919,0.04068049,39189.0,39176.0,0.01729137]
[1646432197920,0.01409288,39188.0,39176.0,0.01729137]
[1646432198118,0.02535,39187.0,39176.0,0.01729137]
[1646432198324,0.02535,39187.0,39176.0,0.01721506]
[1646432198325,1.09875,39187.0,39176.0,0.01721506]
[1646432198520,0.87163933,39187.0,39174.0,6.114e-05]
[1646432198720,0.15604206,39186.0,39174.0,0.00029041]
[1646432198920,0.03707019,39184.0,39174.0,0.00029041]
[1646432199122,0.01403186,39182.0,39174.0,0.00029041]
[1646432199319,0.01058546,39181.0,39174.0,0.00029041]
[1646432199620,0.02535,39180.0,39173.0,0.004]
[1646432199819,0.02535,39180.0,39161.0,0.48]
[1646432199820,0.02535,39180.0,39170.0,0.00029043]
[1646432200021,0.02535,39176.0,39170.0,0.00029043]
[1646432200221,0.79875,39175.0,39170.0,0.00029043]
[1646432200422,1.0734,39174.0,39170.0,0.00029043]
[1646432200624,0.9234,39174.0,39170.0,0.00029043]
[1646432200820,0.01526637,39172.0,39165.0,0.995]
[1646432201019,0.01039441,39171.0,39165.0,0.995]
[1646432201220,0.01508632,39172.0,39165.0,0.995]
[1646432201221,0.01494313,39169.0,39165.0,0.995]
[1646432201419,0.02535,39173.0,39165.0,0.995]
[1646432201420,0.00537758,39168.0,39165.0,0.995]
[1646432201681,0.32535,39173.0,39165.0,0.995]
[1646432201875,0.02535,39171.0,39165.0,0.995]
[1646432202073,0.79875,39170.0,39165.0,0.99]
[1646432202275,0.7734,39168.0,39165.0,0.965]
[1646432202477,0.31325954,39167.0,39165.0,0.965]
[1646432202676,0.01325954,39167.0,39165.0,0.965]
[1646432202878,0.1,39169.0,39165.0,0.965]
[1646432203076,0.1563569,39167.0,39165.0,0.965]
[1646432203278,0.9252,39166.0,39165.0,0.965]
[1646432203477,0.9752,39166.0,39165.0,0.965]
[1646432203675,0.9234,39166.0,39165.0,0.965]
[1646432204476,0.7734,39166.0,39165.0,0.965]
[1646432204678,1.0797569,39166.0,39165.0,0.965]
[1646432205075,1.07801682,39166.0,39165.0,0.965]
[1646432205281,1.37801682,39166.0,39165.0,0.965]
[1646432205512,1.37801682,39166.0,39165.0,0.12684107]
[1646432205709,1.40336682,39166.0,39160.0,0.00125494]
[1646432205910,1.40336682,39166.0,39158.0,0.00029052]
[1646432205911,0.95055,39163.0,39158.0,0.00029052]
[1646432206113,0.1917988,39164.0,39158.0,0.00029052]
[1646432206114,0.9252,39161.0,39158.0,0.00029052]
[1646432206408,0.9252,39161.0,39150.0,0.0032]
[1646432206409,0.7734,39157.0,39155.0,9.052e-05]
[1646432206610,1.20896587,39156.0,39155.0,9.052e-05]
[1646432206813,0.98035537,39156.0,39155.0,9.052e-05]
[1646432207107,1.08035537,39156.0,39155.0,9.052e-05]
[1646432207309,1.08035537,39156.0,39151.0,0.00019052]
[1646432207310,1.74857032,39156.0,39151.0,0.00019052]
[1646432207511,1.74857032,39156.0,39150.0,0.0032]
[1646432207512,0.7734,39153.0,39150.0,0.0032]
[1646432207709,0.7734,39151.0,39150.0,0.0032]
[1646432207908,0.0506,39151.0,39150.0,0.0032]
[1646432208109,0.1506,39151.0,39150.0,0.0032]
[1646432208312,0.2006,39151.0,39150.0,0.0001]
[1646432208510,0.1,39157.0,39150.0,0.0001]
[1646432208711,0.277848,39166.0,39150.0,0.05366221]
[1646432208712,0.0506,39160.0,39150.0,0.05366221]
[1646432208908,0.0506,39160.0,39158.0,0.06406385]
[1646432209171,0.00025071,39159.0,39158.0,0.06406385]
[1646432209563,0.00025071,39159.0,39158.0,0.31840636]
[1646432209763,0.00025071,39159.0,39158.0,0.48974022]
[1646432209963,0.00025071,39159.0,39158.0,0.36340636]
[1646432210966,0.00025071,39159.0,39158.0,0.51114895]
[1646432211365,0.063908,39172.0,39158.0,0.51114895]
[1646432211366,0.00125071,39163.0,39158.0,0.51114895]
[1646432211566,0.00125071,39163.0,39159.0,0.01682667]
[1646432211769,0.00125071,39163.0,39158.0,0.36340636]
[1646432211970,0.23063425,39150.0,39149.0,0.15]
[1646432212170,0.00125071,39163.0,39150.0,0.01729429]
[1646432212367,0.00125071,39163.0,39156.0,0.3106909]
[1646432212566,0.0639,39176.0,39158.0,0.02535]
[1646432212567,0.3,39175.0,39158.0,0.02535]
[1646432212787,0.16202916,39181.0,39158.0,0.02535]
[1646432212788,0.3272541,39180.0,39158.0,0.02535]
[1646432213013,0.3272541,39180.0,39157.0,0.11641847]
[1646432213014,0.34179565,39180.0,39170.0,0.5]
[1646432213315,0.34179565,39180.0,39170.0,0.55]
[1646432213316,0.00635499,39178.0,39170.0,0.55]
[1646432213514,0.01059706,39177.0,39173.0,0.15086088]
[1646432213711,0.01088482,39176.0,39170.0,0.55]
[1646432213913,0.063897,39178.0,39170.0,0.55]
[1646432214111,0.01147007,39177.0,39170.0,0.55]
[1646432214312,2.73201607,39185.0,39171.0,0.31475886]
[1646432214313,0.01089675,39176.0,39171.0,0.31475886]
[1646432214515,2.60422558,39185.0,39171.0,0.31475886]
[1646432214516,0.01374297,39175.0,39171.0,0.31475886]
[1646432214712,0.01225894,39173.0,39171.0,0.06125886]
[1646432215012,0.07827689,39192.0,39176.0,0.06277841]
[1646432215013,0.015,39192.0,39176.0,0.06277841]
[1646432215212,0.015,39192.0,39182.0,0.06724057]
[1646432215421,0.015,39192.0,39183.0,0.31568959]
[1646432215612,0.015,39192.0,39183.0,0.3]
[1646432215811,0.015,39192.0,39181.0,0.31546893]
[1646432216213,0.83265959,39190.0,39184.0,0.14010994]
[1646432216414,0.83265959,39190.0,39189.0,0.31865658]
[1646432217066,0.50461952,39197.0,39189.0,0.64400658]
[1646432217265,0.004,39191.0,39190.0,0.01546949]
[1646432217460,0.004,39191.0,39190.0,0.58463352]
[1646432217866,0.063827,39217.0,39202.0,0.02535]
[1646432218063,0.01322486,39216.0,39203.0,0.29200834]
[1646432218261,0.01249682,39223.0,39203.0,0.3]
[1646432218262,0.01379235,39218.0,39203.0,0.3]
[1646432218462,0.01379235,39218.0,39203.0,0.05]
[1646432218663,0.01379235,39218.0,39202.0,0.01621036]
[1646432218664,0.03755838,39215.0,39205.0,0.06382]
[1646432218863,0.01322486,39223.0,39207.0,0.02535]
[1646432219163,0.01342432,39223.0,39216.0,0.30210178]
[1646432219367,0.01342432,39223.0,39216.0,0.32745178]
[1646432219568,0.00019946,39223.0,39218.0,0.02535]
[1646432219961,0.16724752,39214.0,39211.0,0.15]
[1646432220163,0.16724752,39214.0,39212.0,0.07404023]
[1646432220421,0.16724752,39214.0,39213.0,0.22601343]
[1646432220622,0.16724752,39214.0,39208.0,0.00361597]
[1646432220823,0.16724752,39214.0,39209.0,0.0506]
[1646432221036,0.16724752,39214.0,39211.0,0.01776889]
[1646432221223,0.16724752,39214.0,39212.0,0.0506]
[1646432221823,0.16724752,39214.0,39213.0,0.3]
[1646432222042,0.16724752,39214.0,39211.0,0.06836889]
[1646432222827,0.16724752,39214.0,39211.0,0.12773709]
[1646432223033,0.16724752,39214.0,39211.0,0.06836889]
[1646432223828,0.16724752,39214.0,39212.0,0.24674485]
[1646432224025,0.15697964,39214.0,39212.0,0.38054438]
[1646432225062,0.01250028,39213.0,39212.0,0.24674485]
[1646432225263,0.15697964,39214.0,39212.0,0.24674485]
[1646432225765,0.15697964,39214.0,39211.0,0.23682145]
[1646432226563,0.15697964,39214.0,39212.0,0.12704117]
[1646432226765,0.25799742,39221.0,39220.0,0.13642319]
[1646432226963,0.25848706,39221.0,39220.0,0.13642319]
[1646432227565,0.25848706,39221.0,39220.0,0.18642319]
[1646432228006,0.25848706,39221.0,39220.0,0.01052484]
[1646432230209,0.25848706,39221.0,39220.0,0.00552484]
[1646432230210,0.39011687,39221.0,39220.0,0.00552484]
[1646432230410,0.25848706,39221.0,39220.0,0.00552484]
[1646432231864,0.58839243,39221.0,39211.0,0.30214415]
[1646432232070,0.15,39220.0,39211.0,0.30214415]
[1646432232265,0.15,39220.0,39213.0,0.00021654]
[1646432232466,0.31096502,39220.0,39213.0,0.00021654]
[1646432232667,0.15,39220.0,39213.0,0.00021654]
[1646432232863,0.00019925,39222.0,39213.0,0.00021654]
[1646432232864,0.40868631,39222.0,39213.0,0.00021654]
[1646432233064,0.40868631,39222.0,39217.0,0.30105868]
[1646432233266,0.25848706,39225.0,39217.0,0.30105868]
[1646432233465,0.25848706,39227.0,39217.0,0.30105868]
[1646432233668,0.14519925,39226.0,39217.0,0.30105868]
[1646432234062,0.14519925,39226.0,39223.0,0.30216981]
[1646432234466,0.14519925,39226.0,39224.0,0.3]
[1646432234666,0.36119639,39232.0,39224.0,0.37235]
[1646432234667,0.25848706,39229.0,39224.0,0.37235]
[1646432234868,0.01322486,39236.0,39226.0,0.00480075]
[1646432234869,0.25848706,39235.0,39226.0,0.00480075]
[1646432235067,8.90396031,39226.0,39225.0,0.00480075]
[1646432235270,7.99276031,39226.0,39225.0,0.42581875]
[1646432235517,7.99276031,39226.0,39221.0,0.27735118]
[1646432235716,7.99276031,39226.0,39225.0,0.375256]
[1646432235916,7.99276031,39226.0,39225.0,0.43589805]
[1646432236118,7.50546031,39226.0,39225.0,0.43589805]
[1646432237319,6.28466024,39226.0,39225.0,0.43589805]
[1646432237537,6.28466024,39226.0,39225.0,0.61580755]
[1646432237719,5.92300692,39226.0,39225.0,0.87049238]
[1646432238121,5.92300692,39226.0,39225.0,1.49503588]
[1646432238325,5.54040992,39226.0,39225.0,1.49503588]
[1646432238722,5.54040992,39226.0,39225.0,1.55879788]
[1646432238923,5.54040992,39226.0,39225.0,1.55379788]
[1646432238924,5.15789092,39226.0,39225.0,1.55379788]
[1646432239183,4.85256473,39226.0,39225.0,1.86645707]
[1646432239384,4.47004873,39226.0,39225.0,3.32719788]
[1646432239581,4.0486879,39226.0,39225.0,3.32719788]
[1646432239783,4.0486879,39226.0,39225.0,2.55379788]
[1646432239784,3.4486879,39226.0,39225.0,2.55379788]
[1646432239985,0.01322486,39250.0,39226.0,0.375256]
[1646432240184,0.01322486,39250.0,39225.0,2.36744188]
[1646432240185,0.30959691,39253.0,39237.0,0.02535]
[1646432240388,0.15,39251.0,39240.0,0.30047464]
[1646432240587,0.31799802,39252.0,39241.0,0.14359874]
[1646432240883,0.31799802,39252.0,39243.0,0.12342322]
[1646432241084,0.30959691,39256.0,39244.0,0.136094]
[1646432241285,0.15,39260.0,39245.0,0.400606]
[1646432241286,0.30959691,39257.0,39245.0,0.400606]
[1646432241486,0.51119639,39260.0,39247.0,0.4153012]
[1646432241487,0.30959691,39259.0,39247.0,0.4153012]
[1646432241702,0.30959691,39259.0,39248.0,0.347]
[1646432241885,0.00019924,39253.0,39248.0,0.347]
[1646432242086,0.00019924,39253.0,39249.0,0.375256]
[1646432242289,0.15,39260.0,39250.0,0.047]
[1646432242487,0.15,39260.0,39251.0,0.422256]
[1646432242690,0.015,39267.0,39253.0,0.375256]
[1646432242930,0.015,39267.0,39254.0,0.747606]
[1646432243121,0.015,39267.0,39255.0,0.32535]
[1646432243317,0.015,39267.0,39257.0,0.0157496]
[1646432243518,0.015,39267.0,39258.0,0.422256]
[1646432243718,0.015,39267.0,39260.0,0.063714]
[1646432243919,0.015,39267.0,39261.0,0.31763247]
[1646432244523,0.015,39267.0,39262.0,0.422256]
[1646432244721,0.015,39267.0,39264.0,0.063708]
[1646432244919,0.015,39267.0,39265.0,0.422256]
[1646432245421,0.015,39267.0,39266.0,0.59206955]
[1646432245422,9.0001,39267.0,39266.0,0.59206955]
[1646432245625,9.0001,39267.0,39266.0,0.722256]
[1646432245824,9.0,39267.0,39266.0,0.722256]
[1646432246020,7.9991,39267.0,39266.0,0.382256]
[1646432246420,7.9991,39267.0,39266.0,1.3233448]
[1646432246666,7.9991,39267.0,39266.0,0.9880888]
[1646432246667,8.29080505,39267.0,39266.0,0.9880888]
[1646432247382,8.29080505,39267.0,39248.0,0.8388]
[1646432247383,8.44080505,39267.0,39265.0,0.047]
[1646432247570,8.44080505,39267.0,39262.0,0.005]
[1646432247769,0.15,39263.0,39262.0,0.005]
[1646432247967,0.14917958,39263.0,39262.0,0.005]
[1646432248572,0.44917958,39263.0,39262.0,0.005]
[1646432248769,0.14917958,39263.0,39262.0,0.005]
[1646432249169,0.17452958,39263.0,39258.0,0.0007214]
[1646432249369,0.00019924,39264.0,39258.0,0.0007214]
[1646432249569,0.31053466,39259.0,39258.0,0.0007214]
[1646432249973,0.30526835,39259.0,39258.0,0.0007214]
[1646432251111,0.00019924,39260.0,39258.0,0.0007214]
[1646432251310,0.14917958,39263.0,39258.0,0.0007214]
[1646432251510,0.00019924,39260.0,39258.0,0.0007214]
[1646432251910,0.00019924,39260.0,39257.0,0.04271183]
[1646432252212,0.00019924,39260.0,39257.0,0.27668635]
[1646432252411,0.14917958,39262.0,39257.0,0.27668635]
[1646432252811,0.00019924,39260.0,39257.0,0.27668635]
[1646432253011,0.00019924,39260.0,39252.0,0.127458]
[1646432253212,0.00019924,39260.0,39247.0,0.191174]
[1646432253213,0.14917958,39258.0,39248.0,0.063742]
[1646432253518,0.00019924,39260.0,39249.0,0.374954]
[1646432253710,0.30064708,39263.0,39248.0,0.063742]
[1646432253914,0.00019924,39255.0,39249.0,0.15106691]
[1646432254162,0.00019924,39255.0,39253.0,0.374954]
[1646432254964,0.23451244,39258.0,39251.0,0.063738]
[1646432255163,0.00019924,39256.0,39251.0,0.063738]
[1646432255360,0.00019924,39256.0,39252.0,0.374954]
[1646432255761,0.0124412,39255.0,39252.0,0.374954]
[1646432255961,0.01234794,39254.0,39252.0,0.64943986]
[1646432256176,0.01336333,39253.0,39252.0,0.374954]
[1646432256361,0.00019924,39255.0,39252.0,0.374954]
[1646432256762,2.675e-05,39255.0,39252.0,0.374954]
[1646432256962,2.675e-05,39255.0,39247.0,0.191174]
[1646432257163,2.675e-05,39255.0,39248.0,0.374954]
[1646432257364,0.14917958,39257.0,39248.0,0.376954]
[1646432257563,0.27929388,39252.0,39248.0,0.002]
[1646432257767,0.27929388,39252.0,39248.0,0.065744]
[1646432258011,0.27929388,39252.0,39249.0,0.374954]
[1646432259011,0.27929388,39252.0,39247.0,0.374954]
[1646432260513,0.24540853,39252.0,39247.0,0.374954]
[1646432260715,0.24540853,39252.0,39246.0,0.063747]
[1646432261115,0.24540853,39252.0,39247.0,0.374954]
[1646432261319,0.24540853,39252.0,39246.0,0.063747]
[1646432261963,0.24540853,39252.0,39248.0,0.375076]
[1646432262164,0.24540853,39252.0,39246.0,0.063747]
[1646432262564,0.14917958,39254.0,39246.0,0.063747]
[1646432262764,0.00019921,39257.0,39246.0,0.063747]
[1646432262964,0.14937879,39257.0,39247.0,0.3]
[1646432263166,0.14937879,39257.0,39249.0,0.063734]
[1646432263365,0.14917958,39257.0,39249.0,0.07760607]
[1646432263567,0.14937881,39257.0,39251.0,0.28860623]
[1646432263971,0.00019923,39257.0,39251.0,0.28860623]
[1646432264165,0.14937881,39257.0,39251.0,0.28860623]
[1646432264366,0.00019923,39257.0,39251.0,0.28860623]
[1646432264667,0.3061691,39261.0,39252.0,0.063733]
[1646432264870,0.00019924,39257.0,39252.0,0.063733]
[1646432265722,0.375076,39257.0,39252.0,0.063733]
[1646432265925,0.3061691,39261.0,39252.0,0.063733]
[1646432266119,0.00019924,39257.0,39252.0,0.063733]
[1646432266523,0.043649,39256.0,39252.0,0.063733]
[1646432266718,0.375076,39256.0,39252.0,0.063733]
[1646432267019,0.29961803,39266.0,39253.0,0.32535]
[1646432267020,0.51131599,39266.0,39253.0,0.32535]
[1646432267218,0.00019924,39257.0,39253.0,0.375076]
[1646432267417,0.00019924,39257.0,39252.0,0.375076]
[1646432267619,0.00019924,39257.0,39254.0,0.063726]
[1646432267818,0.14437882,39266.0,39254.0,0.063726]
[1646432268018,0.4040809,39265.0,39254.0,0.063726]
[1646432268218,0.14437882,39264.0,39254.0,0.063726]
[1646432268421,0.00019924,39257.0,39254.0,0.063726]
[1646432268639,0.00019924,39257.0,39256.0,0.375076]
[1646432268818,0.00019924,39257.0,39256.0,0.39227292]
[1646432269023,0.00019924,39257.0,39256.0,0.28053233]
[1646432269264,0.28117407,39265.0,39256.0,0.65560833]
[1646432269460,0.28117407,39265.0,39258.0,0.063724]
[1646432269689,7.9991,39267.0,39258.0,0.063724]
[1646432270563,7.9991,39267.0,39263.0,0.24792136]
[1646432270763,0.00019924,39264.0,39263.0,0.17021773]
[1646432270966,0.00019924,39264.0,39263.0,0.23393473]
[1646432271567,0.00019924,39264.0,39263.0,0.17021773]
[1646432271764,7.9991,39267.0,39263.0,0.01481251]
[1646432271966,0.00019924,39265.0,39251.0,0.34286227]
[1646432272164,0.00019924,39265.0,39254.0,0.1]
[1646432272365,0.00019924,39265.0,39255.0,0.0167791]
[1646432272566,0.2768443,39266.0,39255.0,0.0167791]
[1646432272776,0.2768443,39266.0,39258.0,0.27814844]
[1646432273024,0.2768443,39266.0,39259.0,0.01462883]
[1646432273326,0.14437882,39265.0,39262.0,0.063714]
[1646432273520,0.14437882,39265.0,39263.0,0.01721679]
[1646432273721,0.2768443,39266.0,39263.0,0.01721679]
[1646432274522,0.14437882,39265.0,39263.0,0.01721679]
[1646432274724,7.9991,39267.0,39265.0,0.00079166]
[1646432274924,7.9922144,39267.0,39265.0,0.00079166]
[1646432275125,7.9922144,39267.0,39266.0,0.375076]
[1646432275423,7.9922144,39267.0,39265.0,0.00079166]
[1646432276767,8.35435081,39267.0,39265.0,0.00079166]
[1646432276966,8.35435081,39267.0,39263.0,0.05]
[1646432277366,8.35435081,39267.0,39260.0,0.002]
[1646432277666,0.01298139,39266.0,39260.0,0.002]
[1646432277864,0.01212216,39264.0,39261.0,0.375076]
[1646432278065,8.35455017,39267.0,39262.0,0.063714]
[1646432278267,0.36213641,39263.0,39262.0,0.063714]
[1646432278466,0.36213641,39263.0,39262.0,0.48879]
[1646432279567,0.36213641,39264.0,39262.0,0.48879]
[1646432281214,0.04417081,39263.0,39262.0,0.48879]
[1646432281414,0.04417081,39266.0,39262.0,0.113714]
[1646432281614,0.04418915,39265.0,39263.0,0.375076]
[1646432281813,0.04418915,39264.0,39263.0,0.375076]
[1646432283314,0.36320868,39264.0,39263.0,0.375076]
[1646432284177,0.03362249,39266.0,39263.0,0.375076]
[1646432284357,0.00129255,39264.0,39263.0,0.375076]
[1646432284857,0.03491504,39264.0,39263.0,0.375076]
[1646432287057,0.03491504,39264.0,39263.0,0.31345371]
[1646432289521,0.36463633,39264.0,39263.0,0.31345371]
[1646432294362,0.00129255,39264.0,39263.0,0.31345371]
[1646432295262,0.00129255,39264.0,39263.0,0.31417511]
[1646432298209,0.00129255,39264.0,39263.0,0.30417511]
[1646432299263,8.26952107,39267.0,39263.0,0.30417511]
[1646432299670,8.26452107,39267.0,39263.0,0.30417511]
[1646432300767,8.26452107,39267.0,39264.0,0.063704]
[1646432300968,8.26452107,39267.0,39265.0,0.375076]
[1646432301168,8.26452107,39267.0,39266.0,0.374962]
[1646432301368,8.26452107,39267.0,39264.0,0.374962]
[1646432301792,7.9872144,39267.0,39264.0,0.374962]
[1646432301973,7.98741296,39267.0,39264.0,0.374962]
[1646432302776,7.98741296,39267.0,39265.0,0.27544242]
[1646432303011,7.9872144,39267.0,39266.0,0.374962]
[1646432303211,7.98741296,39267.0,39266.0,0.374962]
[1646432304214,7.9872144,39267.0,39266.0,0.374962]
[1646432305217,7.9822144,39267.0,39264.0,0.374962]
[1646432306760,7.98241296,39267.0,39264.0,0.374962]
[1646432307761,7.9822144,39267.0,39264.0,0.374962]
[1646432307965,7.98241296,39267.0,39265.0,0.3]
[1646432308165,7.98241296,39267.0,39266.0,0.425962]
[1646432308863,7.9822144,39267.0,39266.0,0.425962]
[1646432309762,7.9822144,39267.0,39266.0,0.564862]
[1646432309964,7.9822144,39267.0,39266.0,0.425962]
[1646432311217,8.1464658,39267.0,39266.0,0.425962]
[1646432311412,7.9591144,39267.0,39266.0,0.425962]
[1646432313119,7.9591144,39267.0,39265.0,0.0007214]
[1646432313319,7.9591144,39267.0,39261.0,0.127433]
[1646432313320,0.02535,39265.0,39261.0,0.127433]
[1646432313522,0.02535,39259.0,39248.0,6.893e-05]
[1646432313717,0.02535,39259.0,39238.0,0.26046819]
[1646432313718,0.02535,39252.0,39238.0,0.0007214]
[1646432313919,0.02535,39248.0,39238.0,0.0007214]
[1646432314170,0.14437882,39243.0,39238.0,0.0007214]
[1646432314372,0.29802489,39239.0,39238.0,0.0007214]
[1646432314569,0.91856128,39239.0,39238.0,0.0007214]
[1646432314967,0.32337489,39239.0,39225.0,0.003]
[1646432315170,0.31578381,39234.0,39229.0,0.127535]
[1646432315368,0.31578381,39234.0,39231.0,6.897e-05]
[1646432315570,0.02535,39237.0,39231.0,6.897e-05]
[1646432315873,0.14437882,39235.0,39231.0,6.897e-05]
[1646432316066,0.14437882,39234.0,39233.0,0.063767]
[1646432316867,0.14437882,39234.0,39229.0,0.127535]
[1646432317067,0.23325337,39237.0,39229.0,0.127535]
[1646432317270,0.14437882,39230.0,39229.0,0.502497]
[1646432317474,0.3,39236.0,39230.0,0.28875763]
[1646432317774,0.115403,39236.0,39230.0,0.28875763]
[1646432318016,0.02535,39233.0,39230.0,0.28875763]
[1646432318213,0.400312,39231.0,39230.0,0.28875763]
[1646432318437,1.11128577,39231.0,39230.0,0.28875763]
[1646432318610,1.21128577,39231.0,39230.0,0.28875763]
[1646432318810,1.21128577,39231.0,39230.0,5.763e-05]
[1646432319614,0.91128577,39231.0,39230.0,5.763e-05]
[1646432320413,0.77265065,39231.0,39230.0,5.763e-05]
[1646432320611,0.400312,39231.0,39230.0,5.763e-05]
[1646432321867,0.400312,39231.0,39224.0,0.002]
[1646432322070,0.400312,39231.0,39220.0,0.03619647]
[1646432322071,0.02535,39229.0,39220.0,0.03619647]
[1646432322280,0.01446163,39221.0,39210.0,0.002]
[1646432322475,0.01446163,39221.0,39215.0,0.000219]
[1646432322476,0.41980451,39220.0,39215.0,0.000219]
[1646432322670,0.529882,39216.0,39210.0,0.002]
[1646432322871,0.02535,39214.0,39210.0,0.002]
[1646432323070,0.02535,39212.0,39210.0,0.002]
[1646432323274,0.392632,39211.0,39191.0,0.001]
[1646432323476,0.12011438,39193.0,39191.0,0.001]
[1646432323675,0.92832,39205.0,39191.0,0.001]
[1646432323872,0.400759,39192.0,39191.0,0.001]
[1646432324872,0.375409,39192.0,39191.0,0.001]
[1646432325074,0.726409,39192.0,39191.0,0.001]
[1646432325271,0.726409,39192.0,39184.0,0.002]
[1646432325537,0.726409,39192.0,39176.0,0.001]
[1646432325538,0.14626816,39185.0,39176.0,0.001]
[1646432325830,0.59970061,39184.0,39176.0,0.0001]
[1646432326030,0.27658652,39178.0,39176.0,0.0001]
[1646432326236,0.426409,39177.0,39176.0,0.0001]
[1646432326642,0.726409,39177.0,39165.0,0.02043]
[1646432326831,0.12258078,39176.0,39165.0,0.02043]
[1646432327032,0.137777,39175.0,39165.0,0.02043]
[1646432327231,0.137777,39175.0,39156.0,3.2205125]
[1646432327435,0.137777,39175.0,39166.0,0.00031772]
[1646432327436,0.375409,39173.0,39166.0,0.00031772]
[1646432327631,0.086777,39171.0,39166.0,0.00031772]
[1646432327838,0.086777,39171.0,39159.0,0.20804628]
[1646432327839,2.27865561,39168.0,39159.0,0.20804628]
[1646432328039,0.16290288,39165.0,39159.0,0.20804628]
[1646432328232,0.386777,39164.0,39146.0,0.001]
[1646432328435,0.16290288,39165.0,39146.0,0.001]
[1646432328436,0.675409,39163.0,39154.0,0.02043]
[1646432328632,0.675409,39163.0,39152.0,0.02043]
[1646432328837,0.68669121,39163.0,39151.0,0.02243]
[1646432329034,0.12617881,39156.0,39151.0,0.002]
[1646432329267,0.0969775,39155.0,39151.0,0.002]
[1646432329474,0.01293784,39153.0,39151.0,0.002]
[1646432329672,0.375409,39152.0,39151.0,0.002]
[1646432329866,0.525409,39152.0,39151.0,0.002]
[1646432330268,0.525409,39152.0,39146.0,0.001]
[1646432330269,0.825409,39152.0,39146.0,0.001]
[1646432330469,0.375409,39150.0,39146.0,0.001]
[1646432330668,0.1,39151.0,39143.0,0.00149673]
[1646432330669,0.086777,39146.0,39143.0,0.00149673]
[1646432330868,0.086777,39146.0,39124.0,0.001]
[1646432330869,0.375409,39144.0,39124.0,0.001]
[1646432331072,0.086777,39142.0,39124.0,0.001]
[1646432331271,0.375409,39140.0,39124.0,0.001]
[1646432331475,0.13955082,39142.0,39124.0,0.001]
[1646432331476,0.01207993,39137.0,39129.0,0.0001]
[1646432331666,0.354999,39136.0,39129.0,0.0001]
[1646432331867,0.354999,39136.0,39130.0,0.2678178]
[1646432331868,0.334589,39136.0,39130.0,0.2678178]
[1646432332067,0.07877158,39134.0,39130.0,0.2678178]
[1646432332267,0.01263811,39132.0,39130.0,0.2678178]
[1646432332469,0.334589,39131.0,39130.0,0.2678178]
[1646432332669,0.01263811,39132.0,39130.0,0.2678178]
[1646432332923,0.051,39142.0,39131.0,0.02043]
[1646432333135,0.051,39142.0,39130.0,0.2678178]
[1646432333316,0.025002,39139.0,39130.0,0.2678178]
[1646432333516,0.0242806,39139.0,39136.0,0.24359359]
[1646432333716,0.0242806,39139.0,39130.0,0.02043]
[1646432333916,0.0242806,39139.0,39129.0,0.0001]
[1646432334124,0.0242806,39139.0,39133.0,0.02043]
[1646432334617,0.0242806,39139.0,39132.0,0.02043]
[1646432334820,0.0242806,39139.0,39136.0,0.25031269]
[1646432335018,0.0242806,39139.0,39134.0,0.02043]
[1646432336021,0.3,39149.0,39135.0,0.3436471]
[1646432336022,0.051,39149.0,39135.0,0.3436471]
[1646432336221,0.675852,39148.0,39134.0,0.02043]
[1646432336420,0.15318201,39142.0,39134.0,0.02043]
[1646432336665,0.3,39148.0,39134.0,0.02043]
[1646432336863,0.375852,39147.0,39134.0,0.02043]
[1646432337062,0.375852,39147.0,39133.0,0.00029984]
[1646432337364,0.375852,39149.0,39139.0,0.24807148]